[Event "*** Titled Tuesday Blitz"]
[Site "Chess.com"]
[Date "2020.05.19"]
[Round "4"]
[White "ZEN-22"]
[Black "A-Fier"]
[Result "0-1"]
[WhiteElo "2501"]
[BlackElo "2739"]
[TimeControl "180+1"]
[EndTime "12:37:59 PDT"]
[Termination "A-Fier won by resignation"]

1. e3 {[%clk 0:02:58.4]} 1... g6 {[%clk 0:02:58.4]} 2. Ne2 {[%clk 0:02:58.8]}
2... Bg7 {[%clk 0:02:58.3]} 3. h4 {[%clk 0:02:59.7]} 3... h5 {[%clk 0:02:57.7]}
4. d4 {[%clk 0:02:58.5]} 4... Nf6 {[%clk 0:02:57]} 5. Nf4 {[%clk 0:02:56.8]}
5... O-O {[%clk 0:02:55.2]} 6. Bc4 {[%clk 0:02:56.6]} 6... d5 {[%clk 0:02:51.6]}
7. Bb3 {[%clk 0:02:56.4]} 7... e6 {[%clk 0:02:44.9]} 8. c4 {[%clk 0:02:56.1]}
8... dxc4 {[%clk 0:02:39.7]} 9. Bxc4 {[%clk 0:02:55.3]} 9... c5 {[%clk
0:02:40.6]} 10. d5 {[%clk 0:02:54.5]} 10... exd5 {[%clk 0:02:38.9]} 11. Nxd5
{[%clk 0:02:53.7]} 11... Nxd5 {[%clk 0:02:38.6]} 12. Qxd5 {[%clk 0:02:42.7]}
12... Qe7 {[%clk 0:02:38.4]} 13. Nc3 {[%clk 0:02:39.2]} 13... Nc6 {[%clk
0:02:38.1]} 14. O-O {[%clk 0:02:13.9]} 14... Qxh4 {[%clk 0:02:34.6]} 15. Qxc5
{[%clk 0:02:11.9]} 15... Ne5 {[%clk 0:02:24.2]} 16. Be2 {[%clk 0:02:04.6]} 16...
Bg4 {[%clk 0:02:22.1]} 17. f3 {[%clk 0:02:02.7]} 17... Be6 {[%clk 0:02:22.1]}
18. Qb5 {[%clk 0:01:52.7]} 18... Rad8 {[%clk 0:02:11.5]} 19. Qxb7 {[%clk
0:01:41.7]} 19... Rd7 {[%clk 0:01:58.5]} 20. Qe4 {[%clk 0:01:40.4]} 20... Qd8
{[%clk 0:01:45.1]} 21. f4 {[%clk 0:01:36.3]} 21... Ng4 {[%clk 0:01:43.5]} 22. f5
{[%clk 0:01:35]} 22... Bxf5 {[%clk 0:01:41.3]} 23. Rxf5 {[%clk 0:01:34.7]} 23...
gxf5 {[%clk 0:01:42.2]} 24. Qxf5 {[%clk 0:01:34.4]} 24... Qh4 {[%clk 0:01:15]}
25. Bxg4 {[%clk 0:01:29.3]} 25... hxg4 {[%clk 0:01:14.9]} 26. Qxd7 {[%clk
0:01:27.8]} 26... Qe1+ {[%clk 0:01:14.9]} 27. Kh2 {[%clk 0:01:27.4]} 27... Be5+
{[%clk 0:01:15.8]} 0-1

[Event "*** Titled Tuesday Blitz"]
[Site "Chess.com"]
[Date "2020.05.19"]
[Round "4"]
[White "PavlovDanila"]
[Black "Incognito2525"]
[Result "0-1"]
[WhiteElo "2655"]
[BlackElo "2501"]
[TimeControl "180+1"]
[EndTime "12:38:11 PDT"]
[Termination "Incognito2525 won by resignation"]

1. e4 {[%clk 0:03:00.9]} 1... e6 {[%clk 0:02:57.3]} 2. d4 {[%clk 0:03:00.7]}
2... d5 {[%clk 0:02:52.1]} 3. Nc3 {[%clk 0:03:00.7]} 3... Nc6 {[%clk 0:02:50.6]}
4. e5 {[%clk 0:02:58.2]} 4... Bd7 {[%clk 0:02:49.4]} 5. Bb5 {[%clk 0:02:58.1]}
5... Bb4 {[%clk 0:02:42.4]} 6. a3 {[%clk 0:02:55.3]} 6... Bxc3+ {[%clk
0:02:41.3]} 7. bxc3 {[%clk 0:02:55.6]} 7... Nxe5 {[%clk 0:02:41.4]} 8. Bxd7+
{[%clk 0:02:54.4]} 8... Nxd7 {[%clk 0:02:42.3]} 9. Qg4 {[%clk 0:02:53.9]} 9...
Qf6 {[%clk 0:02:40.7]} 10. Nf3 {[%clk 0:02:52.7]} 10... Qg6 {[%clk 0:02:40.8]}
11. Qh3 {[%clk 0:02:46.8]} 11... Qxc2 {[%clk 0:02:38.2]} 12. O-O {[%clk
0:02:46.6]} 12... Qxc3 {[%clk 0:02:37.8]} 13. Bf4 {[%clk 0:02:46.2]} 13... c6
{[%clk 0:02:33.4]} 14. Rab1 {[%clk 0:02:46]} 14... Nb6 {[%clk 0:02:30.2]} 15.
Bc7 {[%clk 0:02:44.1]} 15... Nf6 {[%clk 0:02:23.6]} 16. Bxb6 {[%clk 0:02:35.8]}
16... axb6 {[%clk 0:02:24.5]} 17. Rxb6 {[%clk 0:02:36.2]} 17... O-O {[%clk
0:02:22.4]} 18. Rxb7 {[%clk 0:02:36]} 18... Rxa3 {[%clk 0:02:22.1]} 19. Qg3
{[%clk 0:02:17.2]} 19... Ra1 {[%clk 0:02:19.3]} 20. Rfb1 {[%clk 0:02:17.1]}
20... Rxb1+ {[%clk 0:02:18.4]} 21. Rxb1 {[%clk 0:02:18]} 21... Ne4 {[%clk
0:02:16]} 22. Qc7 {[%clk 0:02:00.2]} 22... Qc2 {[%clk 0:02:09.9]} 23. Rf1 {[%clk
0:02:00]} 23... h6 {[%clk 0:02:00.2]} 24. Ne5 {[%clk 0:01:58.1]} 24... Nd2
{[%clk 0:01:55.6]} 25. Re1 {[%clk 0:01:57.4]} 25... Qc3 {[%clk 0:01:51.5]} 26.
h3 {[%clk 0:01:09]} 26... f6 {[%clk 0:01:21.8]} 27. Qxc6 {[%clk 0:01:05.5]}
27... Nf3+ {[%clk 0:01:18.9]} 0-1

[Event "*** Titled Tuesday Blitz"]
[Site "Chess.com"]
[Date "2020.05.19"]
[Round "4"]
[White "David_Paravyan"]
[Black "SaySpade4VIP"]
[Result "1/2-1/2"]
[WhiteElo "2881"]
[BlackElo "2684"]
[TimeControl "180+1"]
[EndTime "12:38:13 PDT"]
[Termination "Game drawn by agreement"]

1. e4 {[%clk 0:03:00.9]} 1... c6 {[%clk 0:02:59.6]} 2. d4 {[%clk 0:03:00.2]}
2... d5 {[%clk 0:03:00.5]} 3. e5 {[%clk 0:03:00.7]} 3... c5 {[%clk 0:02:59.1]}
4. c3 {[%clk 0:03:00.5]} 4... Nc6 {[%clk 0:02:56.9]} 5. a3 {[%clk 0:03:01.1]}
5... cxd4 {[%clk 0:02:46.3]} 6. cxd4 {[%clk 0:03:02]} 6... Bf5 {[%clk
0:02:46.8]} 7. Nc3 {[%clk 0:03:00.2]} 7... e6 {[%clk 0:02:47.1]} 8. h4 {[%clk
0:02:41.7]} 8... h6 {[%clk 0:02:36.2]} 9. g4 {[%clk 0:02:40.9]} 9... Bh7 {[%clk
0:02:33.2]} 10. Be3 {[%clk 0:02:38.6]} 10... Nge7 {[%clk 0:02:19.9]} 11. h5
{[%clk 0:02:35.8]} 11... Nc8 {[%clk 0:02:17.4]} 12. Bd3 {[%clk 0:02:20.6]} 12...
Bxd3 {[%clk 0:02:16.3]} 13. Qxd3 {[%clk 0:02:21.5]} 13... Nb6 {[%clk 0:02:16.9]}
14. Nge2 {[%clk 0:02:13.1]} 14... Rc8 {[%clk 0:02:00.6]} 15. b3 {[%clk
0:02:05.7]} 15... a6 {[%clk 0:01:57.4]} 16. Kf1 {[%clk 0:01:50.8]} 16... Na5
{[%clk 0:01:46.7]} 17. Nd1 {[%clk 0:01:49.2]} 17... Be7 {[%clk 0:01:32.8]} 18.
Bd2 {[%clk 0:01:47.8]} 18... Nc6 {[%clk 0:01:30.1]} 19. f4 {[%clk 0:01:43.9]}
19... Kd7 {[%clk 0:01:13.8]} 20. Kg2 {[%clk 0:01:36.4]} 20... Kc7 {[%clk
0:01:13.8]} 21. Ne3 {[%clk 0:01:32.7]} 21... Kb8 {[%clk 0:01:12.3]} 22. Rac1
{[%clk 0:01:26.9]} 22... Bxa3 {[%clk 0:01:09.3]} 23. Rc2 {[%clk 0:01:17.6]}
1/2-1/2

[Event "*** Titled Tuesday Blitz"]
[Site "Chess.com"]
[Date "2020.05.19"]
[Round "4"]
[White "archess2"]
[Black "Storchnoi"]
[Result "1-0"]
[WhiteElo "2284"]
[BlackElo "1932"]
[TimeControl "180+1"]
[EndTime "12:38:18 PDT"]
[Termination "archess2 won by resignation"]

1. d4 {[%clk 0:03:00.9]} 1... Nf6 {[%clk 0:02:59.3]} 2. c4 {[%clk 0:03:01.1]}
2... e6 {[%clk 0:02:59.2]} 3. Nc3 {[%clk 0:03:01.3]} 3... Bb4 {[%clk 0:02:59.1]}
4. Qc2 {[%clk 0:03:01.3]} 4... c5 {[%clk 0:02:58.7]} 5. dxc5 {[%clk 0:03:00.5]}
5... O-O {[%clk 0:02:58.6]} 6. a3 {[%clk 0:03:00.4]} 6... Bxc5 {[%clk
0:02:57.7]} 7. Nf3 {[%clk 0:02:58]} 7... b6 {[%clk 0:02:55.2]} 8. b4 {[%clk
0:02:57.1]} 8... Be7 {[%clk 0:02:54.4]} 9. Bg5 {[%clk 0:02:56.5]} 9... Bb7
{[%clk 0:02:54.1]} 10. e4 {[%clk 0:02:55.1]} 10... d6 {[%clk 0:02:53.9]} 11. Bd3
{[%clk 0:02:54.6]} 11... Nbd7 {[%clk 0:02:53.1]} 12. O-O {[%clk 0:02:54.4]}
12... Rc8 {[%clk 0:02:52.7]} 13. Rfd1 {[%clk 0:02:52.9]} 13... Qc7 {[%clk
0:02:51.3]} 14. Rac1 {[%clk 0:02:51.8]} 14... Qb8 {[%clk 0:02:51.1]} 15. Bf4
{[%clk 0:02:50.7]} 15... Ne5 {[%clk 0:02:48.2]} 16. Nxe5 {[%clk 0:02:49.1]}
16... dxe5 {[%clk 0:02:48.1]} 17. Bg3 {[%clk 0:02:49.4]} 17... Rfd8 {[%clk
0:02:43.2]} 18. f3 {[%clk 0:02:48.7]} 18... a6 {[%clk 0:02:40.8]} 19. Be2 {[%clk
0:02:48.6]} 19... Rd4 {[%clk 0:02:32.5]} 20. Bf2 {[%clk 0:02:46.3]} 20... Rcd8
{[%clk 0:02:30.8]} 21. Bxd4 {[%clk 0:02:45.3]} 21... exd4 {[%clk 0:02:31.1]} 22.
Na4 {[%clk 0:02:43]} 22... Qc7 {[%clk 0:02:25.7]} 23. c5 {[%clk 0:02:42.5]}
23... b5 {[%clk 0:02:09.4]} 24. Nb2 {[%clk 0:02:39]} 24... e5 {[%clk 0:02:04.3]}
25. Nd3 {[%clk 0:02:36.4]} 25... Bc8 {[%clk 0:01:58.3]} 26. a4 {[%clk
0:02:33.6]} 26... Be6 {[%clk 0:01:53.9]} 27. axb5 {[%clk 0:02:28.3]} 27... axb5
{[%clk 0:01:54]} 28. Nf2 {[%clk 0:02:26.5]} 28... Qc6 {[%clk 0:01:45.8]} 29. Ra1
{[%clk 0:02:25.1]} 29... Nh5 {[%clk 0:01:39.9]} 30. Ra5 {[%clk 0:02:23.3]} 30...
Rb8 {[%clk 0:01:39]} 31. Nd3 {[%clk 0:02:16]} 31... Bc4 {[%clk 0:01:36.7]} 32.
Nxe5 {[%clk 0:02:14.7]} 32... Qe6 {[%clk 0:01:31.1]} 33. Nxc4 {[%clk 0:02:14]}
33... bxc4 {[%clk 0:01:30.2]} 34. Bxc4 {[%clk 0:02:13.4]} 34... Qe5 {[%clk
0:01:29.4]} 35. Qb2 {[%clk 0:02:03.1]} 35... Nf4 {[%clk 0:01:26]} 36. g3 {[%clk
0:01:58.1]} 36... Nh3+ {[%clk 0:01:22.3]} 37. Kg2 {[%clk 0:01:57.9]} 37... Ng5
{[%clk 0:01:21.5]} 38. Qxd4 {[%clk 0:01:57.3]} 38... Qc7 {[%clk 0:01:17.3]} 39.
Qd7 {[%clk 0:01:54.7]} 39... Qb7 {[%clk 0:01:04.6]} 40. Qxb7 {[%clk 0:01:53.1]}
40... Rxb7 {[%clk 0:01:04.4]} 41. Ra8+ {[%clk 0:01:53.3]} 41... Bf8 {[%clk
0:01:04.1]} 42. Rdd8 {[%clk 0:01:53.3]} 42... Ne6 {[%clk 0:01:03.6]} 43. Bxe6
{[%clk 0:01:52.9]} 1-0

[Event "*** Titled Tuesday Blitz"]
[Site "Chess.com"]
[Date "2020.05.19"]
[Round "4"]
[White "Chess_Boxer123"]
[Black "ajian"]
[Result "1-0"]
[WhiteElo "2562"]
[BlackElo "2328"]
[TimeControl "180+1"]
[EndTime "12:38:20 PDT"]
[Termination "Chess_Boxer123 won by resignation"]

1. Nf3 {[%clk 0:03:00.9]} 1... Nf6 {[%clk 0:02:59.5]} 2. b3 {[%clk 0:03:00.9]}
2... d5 {[%clk 0:02:59]} 3. Bb2 {[%clk 0:03:00.3]} 3... c5 {[%clk 0:02:59.1]} 4.
e3 {[%clk 0:03:00.4]} 4... Nc6 {[%clk 0:02:59.6]} 5. Bb5 {[%clk 0:03:00.1]} 5...
e6 {[%clk 0:02:59.9]} 6. O-O {[%clk 0:03:00.4]} 6... Bd6 {[%clk 0:02:59.8]} 7.
d4 {[%clk 0:03:00]} 7... O-O {[%clk 0:02:58.7]} 8. Ne5 {[%clk 0:02:59.7]} 8...
Qc7 {[%clk 0:02:56.5]} 9. f4 {[%clk 0:02:58.5]} 9... Ne4 {[%clk 0:02:43.1]} 10.
Nd2 {[%clk 0:02:54.6]} 10... cxd4 {[%clk 0:02:28.5]} 11. Nxe4 {[%clk 0:02:52.1]}
11... dxe4 {[%clk 0:02:25.6]} 12. Nxc6 {[%clk 0:02:45.8]} 12... bxc6 {[%clk
0:02:12.9]} 13. Qxd4 {[%clk 0:02:46.1]} 13... e5 {[%clk 0:01:53.5]} 14. fxe5
{[%clk 0:02:45.8]} 14... Bxe5 {[%clk 0:01:53.3]} 15. Qxe5 {[%clk 0:02:26]} 15...
Qxe5 {[%clk 0:01:53]} 16. Bxe5 {[%clk 0:02:24.7]} 16... cxb5 {[%clk 0:01:53.5]}
17. Rad1 {[%clk 0:02:15.2]} 17... Be6 {[%clk 0:01:50]} 18. Rd6 {[%clk
0:02:12.1]} 18... Rac8 {[%clk 0:01:44.1]} 19. c3 {[%clk 0:02:11.6]} 19... Rc5
{[%clk 0:01:17.9]} 20. Rxe6 {[%clk 0:02:08.7]} 20... Rd5 {[%clk 0:00:12.4]} 21.
Re7 {[%clk 0:02:04]} 21... a5 {[%clk 0:00:11.5]} 22. Bd4 {[%clk 0:02:03.1]}
22... a4 {[%clk 0:00:10.8]} 23. b4 {[%clk 0:02:03.4]} 23... h6 {[%clk
0:00:09.4]} 24. a3 {[%clk 0:02:03.7]} 24... Rd6 {[%clk 0:00:05.9]} 25. Rf5
{[%clk 0:02:02.6]} 25... Rc6 {[%clk 0:00:06.1]} 26. Rxb5 {[%clk 0:02:01.5]} 1-0

[Event "*** Titled Tuesday Blitz"]
[Site "Chess.com"]
[Date "2020.05.19"]
[Round "4"]
[White "VojtechPlat"]
[Black "Zurability"]
[Result "1-0"]
[WhiteElo "2897"]
[BlackElo "2692"]
[TimeControl "180+1"]
[EndTime "12:38:22 PDT"]
[Termination "VojtechPlat won by resignation"]

1. e4 {[%clk 0:03:00.9]} 1... e5 {[%clk 0:02:58.8]} 2. Nf3 {[%clk 0:03:00.6]}
2... Nc6 {[%clk 0:02:59.2]} 3. Bb5 {[%clk 0:03:00.9]} 3... a6 {[%clk 0:02:59.2]}
4. Ba4 {[%clk 0:03:01]} 4... Nf6 {[%clk 0:02:58.3]} 5. d4 {[%clk 0:03:01.3]}
5... exd4 {[%clk 0:02:44.9]} 6. O-O {[%clk 0:03:01]} 6... Be7 {[%clk 0:02:33.2]}
7. Re1 {[%clk 0:03:00.5]} 7... O-O {[%clk 0:02:27]} 8. e5 {[%clk 0:03:00.4]}
8... Nd5 {[%clk 0:02:23.1]} 9. Bb3 {[%clk 0:03:00.1]} 9... Nb6 {[%clk
0:02:19.8]} 10. Nxd4 {[%clk 0:03:00.6]} 10... Nxd4 {[%clk 0:02:11.5]} 11. Qxd4
{[%clk 0:03:00]} 11... d6 {[%clk 0:02:10]} 12. exd6 {[%clk 0:02:59.5]} 12...
Bxd6 {[%clk 0:02:06.6]} 13. Bf4 {[%clk 0:02:59.2]} 13... Qh4 {[%clk 0:01:51.1]}
14. g3 {[%clk 0:02:57.4]} 14... Qg4 {[%clk 0:01:42.6]} 15. h3 {[%clk 0:02:29.9]}
15... Qg6 {[%clk 0:01:28.5]} 16. Bxd6 {[%clk 0:02:29.4]} 16... Qxd6 {[%clk
0:01:26.4]} 17. Qxd6 {[%clk 0:02:29.1]} 17... cxd6 {[%clk 0:01:27.3]} 18. h4
{[%clk 0:02:25.2]} 18... a5 {[%clk 0:01:11.5]} 19. a4 {[%clk 0:02:22.8]} 19...
Bd7 {[%clk 0:01:05.3]} 20. Nc3 {[%clk 0:02:15.6]} 20... Rfe8 {[%clk 0:01:04.2]}
21. Red1 {[%clk 0:02:08.5]} 21... Be6 {[%clk 0:00:53.4]} 22. Rxd6 {[%clk
0:02:06]} 22... Bxb3 {[%clk 0:00:49.3]} 23. cxb3 {[%clk 0:02:03.7]} 23... Nc8
{[%clk 0:00:49.4]} 24. Rd7 {[%clk 0:02:02.9]} 24... b6 {[%clk 0:00:43.6]} 25.
Rad1 {[%clk 0:01:53.7]} 25... Ne7 {[%clk 0:00:37.7]} 26. Nb5 {[%clk 0:01:52.8]}
26... Nc6 {[%clk 0:00:32.7]} 27. Nc7 {[%clk 0:01:52.2]} 27... Ne5 {[%clk
0:00:20.9]} 28. R7d5 {[%clk 0:01:52.1]} 1-0

[Event "*** Titled Tuesday Blitz"]
[Site "Chess.com"]
[Date "2020.05.19"]
[Round "4"]
[White "Savva09022009"]
[Black "nubair1198"]
[Result "0-1"]
[WhiteElo "2419"]
[BlackElo "2664"]
[TimeControl "180+1"]
[EndTime "12:38:22 PDT"]
[Termination "nubair1198 won by checkmate"]

1. d4 {[%clk 0:03:00.1]} 1... Nf6 {[%clk 0:03:00.9]} 2. Nc3 {[%clk 0:02:59.8]}
2... g6 {[%clk 0:03:01.8]} 3. Bf4 {[%clk 0:02:59.9]} 3... d5 {[%clk 0:03:01.5]}
4. Qd2 {[%clk 0:02:59.8]} 4... h5 {[%clk 0:03:02]} 5. O-O-O {[%clk 0:02:58.6]}
5... Bg7 {[%clk 0:02:59.6]} 6. f3 {[%clk 0:02:57.2]} 6... Bf5 {[%clk 0:02:56.5]}
7. e3 {[%clk 0:02:51.4]} 7... a6 {[%clk 0:02:52.3]} 8. Bd3 {[%clk 0:02:51.5]}
8... b5 {[%clk 0:02:51.8]} 9. Nge2 {[%clk 0:02:49.1]} 9... Bxd3 {[%clk
0:02:50.9]} 10. cxd3 {[%clk 0:02:48]} 10... Nbd7 {[%clk 0:02:47.1]} 11. e4
{[%clk 0:02:46.1]} 11... e6 {[%clk 0:02:47.2]} 12. h4 {[%clk 0:02:30.2]} 12...
c5 {[%clk 0:02:43.5]} 13. dxc5 {[%clk 0:02:28.9]} 13... Nxc5 {[%clk 0:02:44.4]}
14. d4 {[%clk 0:02:28.2]} 14... Na4 {[%clk 0:02:40.1]} 15. Nxa4 {[%clk
0:02:21.7]} 15... bxa4 {[%clk 0:02:41]} 16. Be5 {[%clk 0:02:21.3]} 16... dxe4
{[%clk 0:02:35]} 17. Bxf6 {[%clk 0:02:07.7]} 17... Bxf6 {[%clk 0:02:35.9]} 18.
fxe4 {[%clk 0:02:08.3]} 18... Bxh4 {[%clk 0:02:36.4]} 19. d5 {[%clk 0:02:01.4]}
19... Bg5 {[%clk 0:02:36]} 20. Nf4 {[%clk 0:01:52.4]} 20... e5 {[%clk
0:02:36.2]} 21. Kb1 {[%clk 0:01:50.2]} 21... Bxf4 {[%clk 0:02:34.2]} 22. Qb4
{[%clk 0:01:49.3]} 22... Qd7 {[%clk 0:02:32.1]} 23. Rc1 {[%clk 0:01:39.9]} 23...
Bxc1 {[%clk 0:02:31.5]} 24. Rxc1 {[%clk 0:01:35.1]} 24... Rc8 {[%clk 0:02:31.4]}
25. Rxc8+ {[%clk 0:01:31.6]} 25... Qxc8 {[%clk 0:02:32.3]} 26. Qd6 {[%clk
0:01:32.1]} 26... f6 {[%clk 0:02:13.5]} 27. Qxf6 {[%clk 0:01:29.5]} 27... Rh7
{[%clk 0:02:13.2]} 28. Qxg6+ {[%clk 0:01:24.9]} 28... Rf7 {[%clk 0:02:13.7]} 29.
Qg8+ {[%clk 0:01:23.4]} 29... Rf8 {[%clk 0:02:14.1]} 30. Qg6+ {[%clk 0:01:23.5]}
30... Ke7 {[%clk 0:02:03.8]} 31. Qg7+ {[%clk 0:01:16]} 31... Kd6 {[%clk
0:02:03.3]} 32. Qg6+ {[%clk 0:01:09.3]} 32... Kc5 {[%clk 0:02:01.6]} 33. b4+
{[%clk 0:01:00.1]} 33... axb3 {[%clk 0:01:58]} 34. axb3 {[%clk 0:01:01]} 34...
Kd4 {[%clk 0:01:50.1]} 35. d6 {[%clk 0:00:53.7]} 35... Rf1+ {[%clk 0:01:48.7]}
36. Ka2 {[%clk 0:00:53.3]} 36... Qc2+ {[%clk 0:01:48.4]} 37. Ka3 {[%clk
0:00:52.5]} 37... Ra1+ {[%clk 0:01:49]} 38. Kb4 {[%clk 0:00:52.4]} 38... Qc5#
{[%clk 0:01:49.9]} 0-1

[Event "*** Titled Tuesday Blitz"]
[Site "Chess.com"]
[Date "2020.05.19"]
[Round "4"]
[White "GothamChess"]
[Black "santosalberto1987"]
[Result "0-1"]
[WhiteElo "2617"]
[BlackElo "2478"]
[TimeControl "180+1"]
[EndTime "12:38:24 PDT"]
[Termination "santosalberto1987 won by resignation"]

1. e4 {[%clk 0:03:00.9]} 1... e6 {[%clk 0:02:58.1]} 2. b3 {[%clk 0:03:00.3]}
2... d5 {[%clk 0:02:58.2]} 3. Bb2 {[%clk 0:03:00.4]} 3... dxe4 {[%clk
0:02:58.8]} 4. Nc3 {[%clk 0:03:00.5]} 4... Nf6 {[%clk 0:02:59.4]} 5. Qe2 {[%clk
0:03:00.5]} 5... Bb4 {[%clk 0:03:00]} 6. O-O-O {[%clk 0:03:00.7]} 6... Qe7
{[%clk 0:03:00.6]} 7. Kb1 {[%clk 0:03:00.1]} 7... Ba3 {[%clk 0:02:56.2]} 8. Ba1
{[%clk 0:02:56.8]} 8... a5 {[%clk 0:02:55]} 9. Nxe4 {[%clk 0:02:31.7]} 9... a4
{[%clk 0:02:53.5]} 10. Nxf6+ {[%clk 0:02:27.1]} 10... gxf6 {[%clk 0:02:54.4]}
11. Nf3 {[%clk 0:02:09.1]} 11... axb3 {[%clk 0:02:53.6]} 12. axb3 {[%clk
0:02:06.2]} 12... Bc1 {[%clk 0:02:33.8]} 13. Kxc1 {[%clk 0:00:58.2]} 13... Rxa1+
{[%clk 0:02:30.2]} 14. Kb2 {[%clk 0:00:57.9]} 14... Qa3+ {[%clk 0:02:26.2]} 15.
Kc3 {[%clk 0:00:58.1]} 15... Nc6 {[%clk 0:02:13.2]} 16. d4 {[%clk 0:00:47.3]}
16... Qa5+ {[%clk 0:01:44.4]} 17. Kd3 {[%clk 0:00:31.1]} 17... Nb4+ {[%clk
0:01:40.3]} 0-1

[Event "*** Titled Tuesday Blitz"]
[Site "Chess.com"]
[Date "2020.05.19"]
[Round "4"]
[White "esskeettit"]
[Black "TV27"]
[Result "1-0"]
[WhiteElo "2315"]
[BlackElo "2092"]
[TimeControl "180+1"]
[EndTime "12:38:25 PDT"]
[Termination "esskeettit won by resignation"]

1. d4 {[%clk 0:03:00.9]} 1... f5 {[%clk 0:02:59]} 2. g3 {[%clk 0:02:59.7]} 2...
Nf6 {[%clk 0:02:57.7]} 3. Bg2 {[%clk 0:02:59.8]} 3... d5 {[%clk 0:02:53.8]} 4.
Nf3 {[%clk 0:02:56.8]} 4... e6 {[%clk 0:02:53.6]} 5. O-O {[%clk 0:02:56.7]} 5...
Bd6 {[%clk 0:02:53.5]} 6. c4 {[%clk 0:02:56.9]} 6... c6 {[%clk 0:02:52.3]} 7. b3
{[%clk 0:02:34.2]} 7... a5 {[%clk 0:02:50.9]} 8. Ba3 {[%clk 0:02:33.4]} 8... O-O
{[%clk 0:02:49.3]} 9. Qc2 {[%clk 0:02:31.2]} 9... Bxa3 {[%clk 0:02:46.3]} 10.
Nxa3 {[%clk 0:02:32.1]} 10... Qe7 {[%clk 0:02:45.9]} 11. Nb1 {[%clk 0:02:32.4]}
11... Ne4 {[%clk 0:02:45.3]} 12. Nbd2 {[%clk 0:02:26.5]} 12... Nd7 {[%clk
0:02:44.4]} 13. Rfd1 {[%clk 0:02:13.6]} 13... Ndf6 {[%clk 0:02:42.6]} 14. Ne5
{[%clk 0:02:13.1]} 14... Bd7 {[%clk 0:02:34.3]} 15. f3 {[%clk 0:02:10.1]} 15...
Ng5 {[%clk 0:02:17.1]} 16. Nf1 {[%clk 0:02:07]} 16... Nh5 {[%clk 0:02:11.1]} 17.
Qd2 {[%clk 0:02:02.7]} 17... f4 {[%clk 0:02:10.1]} 18. g4 {[%clk 0:01:57.6]}
18... Nf6 {[%clk 0:02:04.1]} 19. Qxf4 {[%clk 0:01:52.9]} 19... Nfe4 {[%clk
0:01:49.5]} 20. Qe3 {[%clk 0:01:52.6]} 20... dxc4 {[%clk 0:01:11.4]} 21. fxe4
{[%clk 0:01:50.7]} 21... Be8 {[%clk 0:01:09.8]} 22. bxc4 {[%clk 0:01:47.9]}
22... h5 {[%clk 0:01:07.3]} 23. gxh5 {[%clk 0:01:44.2]} 23... Bxh5 {[%clk
0:01:06.5]} 24. Ng3 {[%clk 0:01:44.6]} 24... Be8 {[%clk 0:00:56.3]} 25. Rf1
{[%clk 0:01:40]} 25... Rxf1+ {[%clk 0:00:54]} 26. Rxf1 {[%clk 0:01:40.9]} 26...
Rd8 {[%clk 0:00:54.4]} 27. h4 {[%clk 0:01:31]} 27... Nh7 {[%clk 0:00:53.1]} 28.
h5 {[%clk 0:01:31.2]} 28... Nf6 {[%clk 0:00:52.7]} 29. h6 {[%clk 0:01:29.1]}
29... gxh6 {[%clk 0:00:52.2]} 30. Qxh6 {[%clk 0:01:25.5]} 1-0

[Event "*** Titled Tuesday Blitz"]
[Site "Chess.com"]
[Date "2020.05.19"]
[Round "4"]
[White "ElGasanov"]
[Black "bait_or_mate"]
[Result "1-0"]
[WhiteElo "2744"]
[BlackElo "2450"]
[TimeControl "180+1"]
[EndTime "12:38:27 PDT"]
[Termination "ElGasanov won by resignation"]

1. d4 {[%clk 0:03:00.9]} 1... Nf6 {[%clk 0:02:59.7]} 2. Nf3 {[%clk 0:02:59.9]}
2... d5 {[%clk 0:02:59.5]} 3. c4 {[%clk 0:02:59.1]} 3... e6 {[%clk 0:02:59.8]}
4. e3 {[%clk 0:02:59.6]} 4... a6 {[%clk 0:02:59.8]} 5. b3 {[%clk 0:02:58.4]}
5... Bd6 {[%clk 0:02:57.1]} 6. Bb2 {[%clk 0:02:55.1]} 6... O-O {[%clk
0:02:56.7]} 7. Bd3 {[%clk 0:02:55.7]} 7... b6 {[%clk 0:02:55.8]} 8. O-O {[%clk
0:02:52.6]} 8... Bb7 {[%clk 0:02:56.1]} 9. Nc3 {[%clk 0:02:53]} 9... Nbd7 {[%clk
0:02:52]} 10. Qe2 {[%clk 0:02:50.3]} 10... Ne4 {[%clk 0:02:49.2]} 11. Rac1
{[%clk 0:02:43.4]} 11... c5 {[%clk 0:02:36.4]} 12. cxd5 {[%clk 0:02:32.8]} 12...
exd5 {[%clk 0:02:37.3]} 13. Rfd1 {[%clk 0:02:31.6]} 13... Qe7 {[%clk 0:02:31.9]}
14. dxc5 {[%clk 0:02:26.1]} 14... Ndxc5 {[%clk 0:02:11.3]} 15. Bb1 {[%clk
0:02:13.6]} 15... Rfd8 {[%clk 0:02:02.2]} 16. Nd4 {[%clk 0:02:03.4]} 16... Qh4
{[%clk 0:01:51.4]} 17. g3 {[%clk 0:01:58]} 17... Qh3 {[%clk 0:01:50.8]} 18. Qf3
{[%clk 0:01:54]} 18... g6 {[%clk 0:01:36.1]} 19. b4 {[%clk 0:01:35.1]} 19...
Nxc3 {[%clk 0:01:29.8]} 20. Bxc3 {[%clk 0:01:35.4]} 20... Ne4 {[%clk 0:01:29.5]}
21. Bxe4 {[%clk 0:01:36]} 21... dxe4 {[%clk 0:01:30.4]} 22. Qf6 {[%clk
0:01:36.4]} 22... Kf8 {[%clk 0:01:01]} 23. Nc6 {[%clk 0:01:24.1]} 23... Bxc6
{[%clk 0:00:54.1]} 24. Rxd6 {[%clk 0:01:24.6]} 1-0

[Event "*** Titled Tuesday Blitz"]
[Site "Chess.com"]
[Date "2020.05.19"]
[Round "4"]
[White "grandcoach"]
[Black "Doukis"]
[Result "0-1"]
[WhiteElo "2056"]
[BlackElo "2371"]
[TimeControl "180+1"]
[EndTime "12:38:32 PDT"]
[Termination "Doukis won by resignation"]

1. e4 {[%clk 0:03:00.9]} 1... e5 {[%clk 0:02:59.4]} 2. Nf3 {[%clk 0:02:59.2]}
2... Nc6 {[%clk 0:02:59.3]} 3. d4 {[%clk 0:02:58.5]} 3... exd4 {[%clk
0:02:57.1]} 4. c3 {[%clk 0:02:59]} 4... Nf6 {[%clk 0:02:41]} 5. e5 {[%clk
0:02:57.9]} 5... Ne4 {[%clk 0:02:37]} 6. Qe2 {[%clk 0:02:57.4]} 6... d5 {[%clk
0:02:25.4]} 7. exd6 {[%clk 0:02:56]} 7... f5 {[%clk 0:02:25.1]} 8. Nbd2 {[%clk
0:02:50.1]} 8... Bxd6 {[%clk 0:02:21.9]} 9. Nxe4 {[%clk 0:02:50.1]} 9... fxe4
{[%clk 0:02:22.8]} 10. Qxe4+ {[%clk 0:02:50]} 10... Qe7 {[%clk 0:02:23.2]} 11.
Bd3 {[%clk 0:02:47.9]} 11... dxc3 {[%clk 0:02:13.1]} 12. O-O {[%clk 0:02:35.9]}
12... Qxe4 {[%clk 0:02:11.7]} 13. Bxe4 {[%clk 0:02:35.5]} 13... cxb2 {[%clk
0:02:11.6]} 14. Bxb2 {[%clk 0:02:36.2]} 14... O-O {[%clk 0:02:11.5]} 15. Bd5+
{[%clk 0:02:26.1]} 15... Kh8 {[%clk 0:02:11.1]} 16. Ng5 {[%clk 0:02:26.4]} 16...
Nd8 {[%clk 0:02:03.6]} 17. Rfe1 {[%clk 0:02:19.6]} 17... Bf5 {[%clk 0:01:48.4]}
18. Re3 {[%clk 0:01:57.9]} 18... h6 {[%clk 0:01:46.5]} 19. Ne4 {[%clk
0:01:54.1]} 19... Bxe4 {[%clk 0:01:31.1]} 20. Rxe4 {[%clk 0:01:52.3]} 20... c6
{[%clk 0:01:28.6]} 21. Rg4 {[%clk 0:01:44.1]} 21... cxd5 {[%clk 0:01:19.6]} 22.
Rxg7 {[%clk 0:01:20]} 22... Ba3 {[%clk 0:01:17.7]} 23. Bc3 {[%clk 0:01:10.6]}
23... d4 {[%clk 0:01:16.6]} 24. Bxd4 {[%clk 0:01:09.4]} 24... Ne6 {[%clk
0:01:14.1]} 25. Rg3+ {[%clk 0:00:49.1]} 25... Nxd4 {[%clk 0:01:13.1]} 26. Rxa3
{[%clk 0:00:49.3]} 26... Nc2 {[%clk 0:01:13.4]} 0-1